{"text_format":"1","workbook":"xlsx","n_sheets":1,"sheets":["Základ"],"not_rendered":{"charts":0,"images":0,"macros":1,"external_links":0,"defined_names":1,"comments":0,"pivot_tables":0},"unopened":[],"bounds":{"document_bytes":16777216,"sheet_cells":100000,"rows_first":2000,"rows_last":500,"rows_between":2000,"halvings":0,"cell_chars":16384,"cell_head_chars":4096},"cells_cut":0,"cells_raw":0,"read":"whole","date_system":"1900"}

{"sheet":"Základ","index":0,"n_rows":79,"n_cols":30,"rows_kept":79,"cut":false,"hidden":false,"merged":[[78,13,78,15],[45,12,45,13],[72,13,72,15],[67,13,67,15],[73,13,73,15],[74,13,74,15],[75,13,75,15],[68,13,68,15],[69,13,69,15],[70,13,70,15],[71,13,71,15],[63,13,63,15],[64,13,64,15],[65,13,65,15],[66,13,66,15],[59,13,59,15],[60,13,60,15],[61,13,61,15],[62,13,62,15],[55,13,55,15],[56,13,56,15],[76,13,76,15],[77,13,77,15],[69,18,69,19],[70,18,70,19],[57,13,57,15],[58,13,58,15],[51,13,51,15],[52,13,52,15],[53,13,53,15],[54,13,54,15],[68,18,68,19],[64,18,64,19],[65,18,65,19],[66,18,66,19],[67,18,67,19],[46,17,46,19],[61,18,61,19],[62,18,62,19],[63,18,63,19],[41,4,42,23],[44,4,44,5],[46,13,46,15],[50,13,50,15],[47,13,47,15],[48,13,48,15],[49,13,49,15],[47,18,47,19],[57,18,57,19],[58,18,58,19],[59,18,59,19],[60,18,60,19],[52,18,52,19],[53,18,53,19],[54,18,54,19],[55,18,55,19],[56,18,56,19],[78,21,78,23],[44,13,44,23],[62,21,62,23],[63,21,63,23],[64,21,64,23],[65,21,65,23],[66,21,66,23],[67,21,67,23],[68,21,68,23],[69,21,69,23],[70,21,70,23],[71,18,71,19],[72,18,72,19],[73,18,73,19],[74,18,74,19],[75,18,75,19],[76,18,76,19],[77,18,77,19],[78,18,78,19],[46,21,46,23],[47,21,47,23],[48,21,48,23],[49,21,49,23],[50,21,50,23],[1,4,2,23],[71,21,71,23],[72,21,72,23],[73,21,73,23],[74,21,74,23],[75,21,75,23],[76,21,76,23],[77,21,77,23],[51,21,51,23],[52,21,52,23],[53,21,53,23],[54,21,54,23],[55,21,55,23],[56,21,56,23],[57,21,57,23],[58,21,58,23],[59,21,59,23],[60,21,60,23],[61,21,61,23],[48,18,48,19],[49,18,49,19],[50,18,50,19],[51,18,51,19],[39,20,39,21]]}
[]
[null,null,null,null,{"$f":"E42","v":"DKO - 32 / 16"}]
[null,null,null,null,null,null,null,null,null,null,null,null,null,null,null,null,null,null,null,null,null,null,null,null,null,null,null,null,null,"© V.Hajdovský 2016, v. 4.01"]
[]
[null,"B2",null,null,"B1",null,null,null,"A1",null,null,null,"A2",null,null,null,"A3",null,null,null,"A4",null,null,null,"A5",null,null,null,"A6"]
[null,"umístění 17 - 24",null,null,"umístění 25 - 32",null,null,null,"1 - 16",null,null,null,null,null,null,null,"umístění 9 - 16",null,null,null,"umístění 5 - 8",null,null,null,"umístění 3 - 4",null,null,null,"umístění 1 - 2"]
[null,33,null,null,25,null,null,1,{"$f":"E48","v":0},null,null,null,17,null,null,null,41]
[null,{"$f":"lepsi(E8)","v":""},null,null,{"$f":"horsi(I7)","v":""},null,null,32,{"$f":"E79","v":0},null,null,null,{"$f":"lepsi(I7)","v":""},null,null,null,{"$f":"lepsi(M8)","v":""}]
[null,{"$f":"horsi(M24)","v":""},null,null,{"$f":"horsi(I9)","v":""},null,null,17,{"$f":"E64","v":0},null,null,null,{"$f":"lepsi(I9)","v":""},null,null,null,{"$f":"lepsi(B20)","v":""},null,null,null,49]
[null,"[21]","(44)",null,null,null,null,16,{"$f":"E63","v":0},null,null,null,null,"(37)",null,null,"[36]",null,null,null,{"$f":"lepsi(Q8)","v":""}]
[null,34,null,null,26,null,null,9,{"$f":"E56","v":0},null,null,null,18,null,null,null,42,null,null,null,{"$f":"lepsi(Q12)","v":""}]
[null,{"$f":"lepsi(E12)","v":""},null,null,{"$f":"horsi(I11)","v":""},null,null,24,{"$f":"E71","v":0},null,null,null,{"$f":"lepsi(I11)","v":""},null,null,null,{"$f":"lepsi(M12)","v":""}]
[null,{"$f":"horsi(M28)","v":""},null,null,{"$f":"horsi(I13)","v":""},null,null,25,{"$f":"E72","v":0},null,null,null,{"$f":"lepsi(I13)","v":""},null,null,null,{"$f":"lepsi(B16)","v":""},null,null,null,null,null,null,null,53]
[null,"[22]","(43)",null,null,null,null,8,{"$f":"E55","v":0},null,null,null,null,"(38)",null,null,"[35]",null,null,null,null,null,null,null,{"$f":"lepsi(U10)","v":""}]
[null,35,null,null,27,null,null,5,{"$f":"E52","v":0},null,null,null,19,null,null,null,43,null,null,null,null,null,null,null,{"$f":"lepsi(U18)","v":""}]
[null,{"$f":"lepsi(E16)","v":""},null,null,{"$f":"horsi(I15)","v":""},null,null,28,{"$f":"E75","v":0},null,null,null,{"$f":"lepsi(I15)","v":""},null,null,null,{"$f":"lepsi(M16)","v":""}]
[null,{"$f":"horsi(M32)","v":""},null,null,{"$f":"horsi(I17)","v":""},null,null,21,{"$f":"E68","v":0},null,null,null,{"$f":"lepsi(I17)","v":""},null,null,null,{"$f":"lepsi(B12)","v":""},null,null,null,50]
[null,"[23]","(42)",null,null,null,null,12,{"$f":"E59","v":0},null,null,null,null,"(39)",null,null,"[34]",null,null,null,{"$f":"lepsi(Q16)","v":""}]
[null,36,null,null,28,null,null,13,{"$f":"E60","v":0},null,null,null,20,null,null,null,44,null,null,null,{"$f":"lepsi(Q20)","v":""}]
[null,{"$f":"lepsi(E20)","v":""},null,null,{"$f":"horsi(I19)","v":""},null,null,20,{"$f":"E67","v":0},null,null,null,{"$f":"lepsi(I19)","v":""},null,null,null,{"$f":"lepsi(M20)","v":""}]
[null,{"$f":"horsi(M36)","v":""},null,null,{"$f":"horsi(I21)","v":""},null,null,29,{"$f":"E76","v":0},null,null,null,{"$f":"lepsi(I21)","v":""},null,null,null,{"$f":"lepsi(B8)","v":""},null,null,null,null,null,null,null,"o třetí místo",null,null,null,"FINÁLE"]
[null,"[24]","(41)",null,null,null,null,4,{"$f":"E51","v":0},null,null,null,null,"(40)",null,null,"[33]",null,null,null,null,null,null,null,{"$f":"horsi(Y14)","v":""},null,null,null,{"$f":"lepsi(Y14)","v":""}]
[null,37,null,null,29,null,null,3,{"$f":"E50","v":0},null,null,null,21,null,null,null,45,null,null,null,null,null,null,null,{"$f":"horsi(Y30)","v":""},null,null,null,{"$f":"lepsi(Y30)","v":""}]
[null,{"$f":"lepsi(E24)","v":""},null,null,{"$f":"horsi(I23)","v":""},null,null,30,{"$f":"E77","v":0},null,null,null,{"$f":"lepsi(I23)","v":""},null,null,null,{"$f":"lepsi(M24)","v":""},null,null,null,null,null,null,null,"(nepovinné)"]
[null,{"$f":"horsi(M8)","v":""},null,null,{"$f":"horsi(I25)","v":""},null,null,19,{"$f":"E66","v":0},null,null,null,{"$f":"lepsi(I25)","v":""},null,null,null,{"$f":"lepsi(B36)","v":""},null,null,null,51]
[null,"[17]","(48)",null,null,null,null,14,{"$f":"E61","v":0},null,null,null,null,"(33)",null,null,"[40]",null,null,null,{"$f":"lepsi(Q24)","v":""}]
[null,38,null,null,30,null,null,11,{"$f":"E58","v":0},null,null,null,22,null,null,null,46,null,null,null,{"$f":"lepsi(Q28)","v":""}]
[null,{"$f":"lepsi(E28)","v":""},null,null,{"$f":"horsi(I27)","v":""},null,null,22,{"$f":"E69","v":0},null,null,null,{"$f":"lepsi(I27)","v":""},null,null,null,{"$f":"lepsi(M28)","v":""}]
[null,{"$f":"horsi(M12)","v":""},null,null,{"$f":"horsi(I29)","v":""},null,null,27,{"$f":"E74","v":0},null,null,null,{"$f":"lepsi(I29)","v":""},null,null,null,{"$f":"lepsi(B32)","v":""},null,null,null,null,null,null,null,54]
[null,"[18]","(47)",null,null,null,null,6,{"$f":"E53","v":0},null,null,null,null,"(34)",null,null,"[39]",null,null,null,null,null,null,null,{"$f":"lepsi(U26)","v":""}]
[null,39,null,null,31,null,null,7,{"$f":"E54","v":0},null,null,null,23,null,null,null,47,null,null,null,null,null,null,null,{"$f":"lepsi(U34)","v":""}]
[null,{"$f":"lepsi(E32)","v":""},null,null,{"$f":"horsi(I31)","v":""},null,null,26,{"$f":"IF(E73>\"*\",E73,\"\")","v":""},null,null,null,{"$f":"lepsi(I31)","v":""},null,null,null,{"$f":"lepsi(M32)","v":""}]
[null,{"$f":"horsi(M16)","v":""},null,null,{"$f":"horsi(I33)","v":""},null,null,23,{"$f":"E70","v":0},null,null,null,{"$f":"lepsi(I33)","v":""},null,null,null,{"$f":"lepsi(B28)","v":""},null,null,null,52]
[null,"[19]","(46)",null,null,null,null,10,{"$f":"E57","v":0},null,null,null,null,"(35)",null,null,"[38]",null,null,null,{"$f":"lepsi(Q32)","v":""}]
[null,40,null,null,32,null,null,15,{"$f":"E62","v":0},null,null,null,24,null,null,null,48,null,null,null,{"$f":"lepsi(Q36)","v":""}]
[null,{"$f":"lepsi(E36)","v":""},null,null,{"$f":"horsi(I35)","v":""},null,null,18,{"$f":"E65","v":0},null,null,null,{"$f":"lepsi(I35)","v":""},null,null,null,{"$f":"lepsi(M36)","v":""}]
[null,{"$f":"horsi(M20)","v":""},null,null,{"$f":"horsi(I37)","v":""},null,null,31,{"$f":"E78","v":0},null,null,null,{"$f":"lepsi(I37)","v":""},null,null,null,{"$f":"lepsi(B24)","v":""}]
[null,"[20]","(45)",null,null,null,null,2,{"$f":"E49","v":0},null,null,null,null,"(36)",null,null,"[37]"]
[null,"umístění 17 - 24",null,null,"umístění 25 - 32",null,null,null,null,null,null,null,null,null,null,null,"umístění 9 - 16",null,null,null,"umístění 5 - 8",null,null,null,"umístění 3 - 4",null,null,null,"umístění 1 - 2"]
[null,"B2",null,null,"B1",null,null,null,"A1",null,null,null,"A2",null,null,null,"A3",null,null,null,"A4",null,null,null,"A5",null,null,null,"A6"," "]
[]
[null,null,null,null,"DKO - 32 / 16"]
[]
[]
[null,null,null,null,"Nasazení hráčů",null,null,null,null,null,null,null,null,"Výsledková listina",null,null,null,null,null,null,null,null,null,null,null,null,null,"Pokyny k pavouku:"]
[]
[null,null,null,null,"Jméno","Poř.",null,null,null,null,null,null,null,"Pořadí",null,null,"Jméno","Hry/Výhry",null,null,"Skóre","Koef.",null,null,null,null,null,"Nadpis v ř.42+43 lze použít pro název turnaje."]
[null,null,null,null,null,1,null,null,null,null,null,null,null,"1.",null,null,{"$f":"lepsi(AC22)","v":""}]
[null,null,null,null,null,2,null,null,null,null,null,null,null,"2.",null,null,{"$f":"horsi(AC22)","v":""},null,null,null,null,null,null,null,null,null,null,"Seznam účastníků lze naplnit ve volném pořadí,"]
[null,null,null,null,null,3,null,null,null,null,null,null,null,"3. - 4.",null,null,{"$f":"horsi(Y14)","v":""},null,null,null,null,null,null,null,null,null,null,"které můžeme dále upravit mícháním a přesuny."]
[null,null,null,null,null,4,null,null,null,null,null,null,null,null,null,null,{"$f":"horsi(Y30)","v":""},null,null,null,null,null,null,null,null,null,null,"Možnost úprav končí s prvním výsledkem."]
[null,null,null,null,null,5,null,null,null,null,null,null,null,"5. - 8.",null,null,{"$f":"horsi(U10)","v":""},null,null,null,null,null,null,null,null,null,null,"Neobsazená místa seznamu je třeba vyplnit: ***"]
[null,null,null,null,null,6,null,null,null,null,null,null,null,null,null,null,{"$f":"horsi(U18)","v":""}]
[null,null,null,null,null,7,null,null,null,null,null,null,null,null,null,null,{"$f":"horsi(U26)","v":""},null,null,null,null,null,null,null,null,null,null,"Výsledky do pavouka se zadávají po klepnutí"]
[null,null,null,null,null,8,null,null,null,null,null,null,null,null,null,null,{"$f":"horsi(U34)","v":""},null,null,null,null,null,null,null,null,null,null,"pravou myší na pole vybraného zápasu."]
[null,null,null,null,null,9,null,null,null,null,null,null,null,"9. - 16.",null,null,{"$f":"horsi(Q8)","v":""},null,null,null,null,null,null,null,null,null,null,"Nerozhodné výsledky nejsou v pavouku povoleny."]
[null,null,null,null,null,10,null,null,null,null,null,null,null,null,null,null,{"$f":"horsi(Q12)","v":""}]
[null,null,null,null,null,11,null,null,null,null,null,null,null,null,null,null,{"$f":"horsi(Q16)","v":""},null,null,null,null,null,null,null,null,null,null,"Výsledovka se plní automaticky v okamžiku,"]
[null,null,null,null,null,12,null,null,null,null,null,null,null,null,null,null,{"$f":"horsi(Q20)","v":""},null,null,null,null,null,null,null,null,null,null,"kdy hráč končí svou aktivní účast na turnaji."]
[null,null,null,null,null,13,null,null,null,null,null,null,null,null,null,null,{"$f":"horsi(Q24)","v":""},null,null,null,null,null,null,null,null,null,null,"Výsledky jsou členěny do skupin dle umístění."]
[null,null,null,null,null,14,null,null,null,null,null,null,null,null,null,null,{"$f":"horsi(Q28)","v":""}]
[null,null,null,null,null,15,null,null,null,null,null,null,null,null,null,null,{"$f":"horsi(Q32)","v":""},null,null,null,null,null,null,null,null,null,null,"Pro opakované použití je vhodné sešit uložit"]
[null,null,null,null,null,16,null,null,null,null,null,null,null,null,null,null,{"$f":"horsi(Q36)","v":""},null,null,null,null,null,null,null,null,null,null,"mezi vlastní šablony ve formátu *.XLTM."]
[null,null,null,null,null,17,null,null,null,null,null,null,null,"17. - 24.",null,null,{"$f":"horsi(B8)","v":""},null,null,null,null,null,null,null,null,null,null,"Použitý sešit ovšem lze využít pro další turnaj"]
[null,null,null,null,null,18,null,null,null,null,null,null,null,null,null,null,{"$f":"horsi(B12)","v":""},null,null,null,null,null,null,null,null,null,null,"také po jeho iniciaci službou Čištění listu."]
[null,null,null,null,null,19,null,null,null,null,null,null,null,null,null,null,{"$f":"horsi(B16)","v":""}]
[null,null,null,null,null,20,null,null,null,null,null,null,null,null,null,null,{"$f":"horsi(B20)","v":""},null,null,null,null,null,null,null,null,null,null,"Vyhledání jména v pavouku:"]
[null,null,null,null,null,21,null,null,null,null,null,null,null,null,null,null,{"$f":"horsi(B24)","v":""},null,null,null,null,null,null,null,null,null,null,"Vyber pravou myší jméno v nasazovacím seznamu."]
[null,null,null,null,null,22,null,null,null,null,null,null,null,null,null,null,{"$f":"horsi(B28)","v":""},null,null,null,null,null,null,null,null,null,null,"Zobrazí se všechny výskyty vybraného jména na listu."]
[null,null,null,null,null,23,null,null,null,null,null,null,null,null,null,null,{"$f":"horsi(B32)","v":""},null,null,null,null,null,null,null,null,null,null,"Náhled ukonči klepnutím pravou myší vedle seznamu"]
[null,null,null,null,null,24,null,null,null,null,null,null,null,null,null,null,{"$f":"horsi(B36)","v":""}]
[null,null,null,null,null,25,null,null,null,null,null,null,null,"25. - 32.",null,null,{"$f":"horsi(E8)","v":""}]
[null,null,null,null,null,26,null,null,null,null,null,null,null,null,null,null,{"$f":"horsi(E12)","v":""}]
[null,null,null,null,null,27,null,null,null,null,null,null,null,null,null,null,{"$f":"horsi(E16)","v":""}]
[null,null,null,null,null,28,null,null,null,null,null,null,null,null,null,null,{"$f":"horsi(E20)","v":""}]
[null,null,null,null,null,29,null,null,null,null,null,null,null,null,null,null,{"$f":"horsi(E24)","v":""}]
[null,null,null,null,null,30,null,null,null,null,null,null,null,null,null,null,{"$f":"horsi(E28)","v":""}]
[null,null,null,null,null,31,null,null,null,null,null,null,null,null,null,null,{"$f":"horsi(E32)","v":""}]
[null,null,null,null,null,32,null,null,null,null,null,null,null,null,null,null,{"$f":"horsi(E36)","v":""}]